bitfinex/quotes_SOLUSD_20250915
["timestamp","ask_amount","ask_price","bid_price","bid_amount"]
[1757934922745,0.72,236.88,236.86,33.38]
[1757934923471,0.72,236.88,236.86,37.60187855]
[1757934924534,0.03,236.88,236.87,0.69]
[1757934924737,0.03,236.88,236.87,0.83216157]
[1757934925035,0.03,236.88,236.87,2.52417316]
[1757934925643,0.03,236.88,236.87,6.74589815]
[1757934926660,1e-08,236.89,236.88,13.73775558]
[1757934926858,1e-08,236.89,236.88,52.88548592]
[1757934927164,1e-08,236.89,236.88,47.74775558]
[1757934928149,1e-08,236.89,236.88,51.96930235]
[1757934930649,1e-08,236.89,236.88,18.64930235]
[1757934930849,1e-08,236.89,236.88,51.96930235]
[1757934934362,1e-08,236.89,236.88,53.66095616]
[1757934934564,1e-08,236.89,236.88,53.62095616]
[1757934935654,1e-08,236.89,236.88,20.34095616]
[1757934935856,1e-08,236.89,236.88,41.90422732]
[1757934936447,1e-08,236.89,236.88,8.62422732]
[1757934936846,1e-08,236.89,236.88,41.90422732]
[1757934938560,0.69000001,236.89,236.88,1.69165381]
[1757934938761,0.69000001,236.89,236.83,0.06]
[1757934938762,0.69000001,236.89,236.84,4.22225975]
[1757934938952,0.69,236.88,236.85,33.28]
[1757934939159,0.69,236.87,236.85,33.28]
[1757934939340,0.69,236.86,236.85,33.28]
[1757934939543,0.69,236.86,236.83,5.97465398]
[1757934939767,2.56886518,236.89,236.83,5.97465398]
[1757934939768,0.69,236.85,236.83,5.97465398]
[1757934939942,2.56886518,236.89,236.83,0.06]
[1757934940143,2.56886518,236.89,236.84,33.26]
[1757934940144,2.56886517,236.87,236.84,33.26]
[1757934940343,2.56886517,236.87,236.84,33.28]
[1757934940553,0.69,236.86,236.84,33.28]
[1757934940755,0.69,236.85,236.84,33.28]
[1757934940943,3.25886517,236.85,236.83,0.06]
[1757934942547,0.69,236.85,236.83,0.06]
[1757934942750,2.56886517,236.84,236.83,0.06]
[1757934943154,3.25886517,236.84,236.83,0.06]
[1757934944577,0.03000001,236.89,236.83,0.06]
[1757934944578,0.03000001,236.89,236.87,0.14216157]
[1757934944776,0.03000001,236.89,236.88,40.93041194]
[1757934945974,0.03000001,236.89,236.88,41.07257351]
[1757934948583,0.03000001,236.89,236.88,58.92882959]
[1757934949466,0.1,236.99,236.93,13.59559401]
[1757934949673,0.1,236.99,236.98,2.71102674]
[1757934949981,0.1,236.99,236.98,36.19102674]
[1757934950278,0.1,236.99,236.98,37.8822514]
[1757934950675,0.1,236.99,236.98,42.10201678]
[1757934950987,0.71,237.07,237.01,26.0]
[1757934951181,0.1,237.09,237.06,0.14216157]
[1757934951381,0.1,237.09,237.08,2.56886517]
[1757934951764,0.1,237.09,237.08,1.64154197]
[1757934951983,0.81,237.09,237.08,1.64154197]
[1757934952465,0.81,237.09,237.08,5.85952746]
[1757934952997,0.1,237.09,237.08,6.00168903]
[1757934953796,0.1,237.09,237.08,39.50168903]
[1757934954771,0.1,237.09,237.08,40.17168903]
[1757934954967,0.1,237.09,237.08,53.76728304]
[1757934957294,0.1,237.09,237.08,53.09728304]
[1757934958172,0.1,237.09,237.08,65.75630045]
[1757934958580,0.1,237.09,237.08,50.51916447]
[1757934958884,0.1,237.09,237.08,52.16070644]
[1757934959062,0.1,237.09,237.08,50.47916447]
[1757934959265,0.81,237.09,237.08,50.47916447]
[1757934959493,0.1,237.09,237.08,50.47916447]
[1757934960884,0.81,237.09,237.08,12.80117898]
[1757934961084,0.81,237.09,237.08,72.24117898]
[1757934961273,0.13,237.09,237.08,72.24117898]
[1757934961610,0.84,237.09,237.08,72.24117898]
[1757934962070,0.13,237.09,237.08,72.24117898]
[1757934962573,0.13,237.09,237.08,74.54272095]
[1757934963178,0.13,237.09,237.08,48.54272095]
[1757934963492,0.13,237.09,237.08,62.13831496]
[1757934963792,0.13,237.09,237.08,66.35630045]
[1757934964197,0.13,237.09,237.08,68.04659604]
[1757934965279,0.13,237.09,237.08,50.45916447]
[1757934966198,0.13,237.09,237.08,52.80960292]
[1757934966998,0.13,237.09,237.08,66.40519693]
[1757934967396,0.13,237.09,237.08,14.49161743]
[1757934967691,0.84,237.09,237.08,46.13901741]
[1757934968273,0.84,237.09,237.08,46.28117898]
[1757934968274,0.13,237.09,237.08,46.28117898]
[1757934968671,0.84,237.09,237.08,12.65901741]
[1757934968884,0.84,237.09,237.08,33.48]
[1757934969478,0.84,237.09,237.05,12.73274895]
[1757934969687,0.71,237.08,237.06,33.48]
[1757934969986,0.71,237.07,237.06,33.48]
[1757934970891,0.71,237.07,237.06,37.69834134]
[1757934971679,0.13,237.09,237.07,0.14216157]
[1757934971874,0.13,237.09,237.08,33.44]
[1757934972289,0.13,237.09,237.08,37.65798549]
[1757934972482,0.13,237.09,237.08,37.80014706]
[1757934974388,0.13,237.09,237.08,33.58216157]
[1757934974590,0.84,237.09,237.06,0.14216157]
[1757934974896,0.84,237.09,237.06,33.60216157]
[1757934975098,0.71,237.08,237.06,33.46]
[1757934975309,0.71,237.07,237.05,38.81591078]
[1757934975479,0.71,237.06,237.05,72.41807235]
[1757934977679,2.35154197,237.06,237.05,33.46]
[1757934977900,2.35154197,237.06,237.04,33.44]
[1757934978111,0.71,237.05,237.04,33.44]
[1757934978284,0.71,237.05,237.02,0.14216157]
[1757934978583,0.71,237.04,237.02,33.58216157]
[1757934978993,0.71,237.04,237.02,37.80117622]
[1757934979398,2.35154197,237.06,237.02,33.58216157]
[1757934979604,0.71,237.05,237.04,26.0]
[1757934980304,0.71,237.05,236.99,10.54882867]
[1757934980305,0.71,237.05,236.99,26.0]
[1757934980503,1.64154197,237.06,236.99,26.0]
[1757934980504,1.64154197,237.03,237.0,33.42]
[1757934980809,0.71,237.02,237.0,45.83647974]
[1757934980984,0.71,237.01,237.0,45.83647974]
[1757934981179,0.71,237.01,237.0,45.97864131]
[1757934981585,2.35154197,237.03,237.0,45.97864131]
[1757934981786,0.71,237.02,237.0,45.97864131]
[1757934982005,1.64154197,237.03,237.0,33.42]
[1757934982205,0.71,237.01,237.0,33.42]
[1757934982404,2.35154197,237.03,237.0,33.42]
[1757934982988,2.35154197,237.03,237.0,37.63932905]
[1757934983188,2.35154197,237.03,237.0,4.21932905]
[1757934985292,0.71,237.02,237.0,4.21932905]
[1757934985613,2.35154197,237.02,237.0,4.21932905]
[1757934985797,2.35154197,237.02,237.0,17.08639663]
[1757934986114,2.35154197,237.02,237.0,4.21932905]
[1757934986311,0.71,237.01,236.99,37.67956967]
[1757934987212,1.64154197,237.02,236.99,37.67956967]
[1757934987508,2.35154197,237.02,236.99,37.67956967]
[1757934988412,2.35154197,237.02,236.99,33.46]
[1757934988587,2.35154197,237.02,236.99,37.6795165]
[1757934988988,0.03,237.06,237.02,26.0]
[1757934989218,0.03,237.06,237.04,0.14216157]
[1757934989392,0.03,237.06,237.05,33.62216157]
[1757934989596,0.71,237.05,237.03,0.14216157]
[1757934989800,0.71,237.05,237.02,59.48]
[1757934990727,0.03,237.06,237.05,26.0]
[1757934990903,0.03,237.06,237.05,61.26370354]
[1757934991116,0.03,237.06,237.05,75.51929755]
[1757934992418,0.03,237.06,237.05,79.73781684]
[1757934993120,0.13,237.09,237.08,41.37929755]
[1757934993312,0.13,237.09,237.08,74.87929755]
[1757934993500,0.13,237.09,237.08,75.55929755]
[1757934994228,0.13,237.09,237.08,79.77728304]
[1757934999020,0.68,237.18,237.09,13.73775558]
[1757934999320,0.68,237.18,237.14,0.14216157]
[1757934999503,0.68,237.17,237.15,33.42]
[1757935000209,0.1,237.19,237.16,0.14216157]
[1757935000413,0.1,237.19,237.17,37.63627552]
[1757935000609,0.68,237.18,237.17,37.63627552]
[1757935002315,0.68,237.18,237.17,33.42]
[1757935002710,2.32154197,237.18,237.08,10.54471564]
[1757935002909,2.35154197,237.17,237.12,26.0]
[1757935003253,0.68,237.16,237.13,33.4]
[1757935003398,0.68,237.15,237.13,33.4]
[1757935003603,0.68,237.14,237.13,4.2170961]
[1757935004532,0.03,237.17,237.13,4.2170961]
[1757935004824,0.68,237.16,237.13,4.2170961]
[1757935005125,0.68,237.15,237.13,4.2170961]
[1757935006024,0.03,237.17,237.16,26.14216157]
[1757935006322,0.03,237.17,237.16,59.50216157]
[1757935006820,0.71,237.17,237.16,59.50216157]
[1757935007202,0.03,237.17,237.16,59.50216157]
[1757935007401,0.03,237.17,237.16,26.14216157]
[1757935007621,0.71,237.17,237.16,26.0]
[1757935007812,2.35154197,237.17,237.14,33.38]
[1757935008001,2.32154197,237.16,237.14,33.38]
[1757935008216,0.68,237.15,237.14,33.52216157]
[1757935008505,0.68,237.15,237.13,59.38]
[1757935008725,0.68,237.14,237.13,59.38]
[1757935009429,2.32154197,237.14,237.11,33.50216157]
[1757935009601,2.32154197,237.13,237.11,33.36]
[1757935009804,0.68,237.12,237.11,33.36]
[1757935010828,1.64154197,237.16,237.09,65.87934678]
[1757935011018,2.32154197,237.16,237.09,65.87934678]
[1757935011222,0.68,237.16,237.09,65.87934678]
[1757935011408,0.68,237.15,237.09,65.21934678]
[1757935012126,0.03,237.17,237.12,27.64154197]
[1757935012335,0.03,237.17,237.13,33.34]
[1757935013134,0.03,237.17,237.14,2.44370354]
[1757935013309,0.03,237.17,237.16,0.14216157]
[1757935014118,0.03,237.17,237.16,4.35872422]
[1757935017518,0.03,237.17,237.16,0.14216157]
[1757935017714,0.03,237.17,237.13,2.56338687]
[1757935017715,0.71,237.17,237.13,0.14216157]
[1757935017940,0.71,237.17,237.15,0.14216157]
[1757935018242,0.71,237.17,237.15,2.70554844]
[1757935019415,0.03,237.17,237.15,6.92224294]
[1757935020124,0.03,237.17,237.15,2.70554844]
[1757935020330,0.68,237.16,237.14,33.44216157]
[1757935020632,0.03,237.17,237.13,33.3]
[1757935020837,0.68,237.16,237.13,33.3]
[1757935021414,0.03,237.17,237.13,33.3]
[1757935021624,0.68,237.15,237.13,33.3]
[1757935021938,0.03,237.17,237.16,26.0]
[1757935022118,0.03,237.17,237.16,62.72338687]
[1757935022317,0.03,237.17,237.16,66.93994952]
[1757935022529,0.03,237.17,237.16,64.37656265]
[1757935022728,0.03,237.17,237.16,67.08211109]
[1757935023534,0.03,237.17,237.16,80.6777051]
[1757935027746,0.03,237.17,237.16,78.11431823]
[1757935027947,0.03,237.17,237.16,80.6777051]
[1757935028421,0.03,237.17,237.16,79.9777051]
[1757935028623,0.03,237.17,237.16,79.8977051]
[1757935030642,0.03,237.17,237.16,80.5977051]
[1757935032741,0.03,237.17,237.16,79.8977051]
[1757935032931,0.03,237.17,237.16,80.5977051]
[1757935033440,0.03,237.17,237.16,79.8977051]
[1757935033837,0.03,237.17,237.16,66.30211109]
[1757935035848,0.03,237.17,237.11,21.08677722]
[1757935035849,0.72,237.17,237.06,21.15113658]
[1757935036147,0.69,237.16,237.1,4.21762969]
[1757935036324,0.69,237.15,237.12,2.56338687]
[1757935036523,0.69,237.14,237.13,26.0]
[1757935038049,0.69,237.14,237.13,28.56338687]
[1757935039049,0.03,237.17,237.13,32.78048297]
[1757935039253,0.69,237.16,237.14,2.56338687]
[1757935039445,0.69,237.15,237.14,2.56338687]
[1757935040345,0.69,237.15,237.14,32.78030514]
[1757935040844,0.03,237.17,237.14,32.78030514]
[1757935041163,0.03,237.17,237.16,2.56338687]
[1757935041345,0.03,237.17,237.14,26.0]
[1757935041657,0.03,237.17,237.15,35.84338687]
[1757935042150,0.69,237.16,237.15,35.84338687]
[1757935042348,0.69,237.16,237.15,2.56338687]
[1757935042654,0.69,237.16,237.14,30.21689726]
[1757935042971,0.03,237.17,237.14,30.21689726]
[1757935042972,0.69,237.15,237.14,30.21689726]
[1757935044238,0.72,237.17,237.14,32.78028413]
[1757935044432,0.69,237.16,237.14,32.78028413]
[1757935044658,0.69,237.15,237.14,32.78028413]
[1757935045842,0.03,237.17,237.14,32.78028413]
[1757935046047,0.69,237.16,237.14,32.78028413]
[1757935046357,0.69,237.16,237.15,2.56338687]
[1757935046558,0.03,237.17,237.15,2.56338687]
[1757935047046,0.69,237.16,237.15,2.56338687]
[1757935047360,0.03,237.17,237.15,40.69995189]
[1757935047558,0.03,237.17,237.16,0.84216157]
[1757935048357,0.03,237.17,237.16,34.08216157]
[1757935048734,0.03,237.17,237.16,40.86211109]
[1757935050157,0.03,237.17,237.16,38.29872422]
[1757935050350,0.03,237.17,237.16,40.86211109]
[1757935050556,0.03,237.17,237.16,38.29872422]
[1757935050747,0.03,237.17,237.16,40.86211109]
[1757935052038,0.03,237.17,237.16,33.62211109]
[1757935052238,0.03,237.17,237.16,40.80211109]
[1757935052840,0.03,237.17,237.16,40.10211109]
[1757935053046,0.03,237.17,237.16,32.92211109]
[1757935053241,0.03,237.17,237.16,40.10211109]
[1757935053440,0.03,237.17,237.16,40.76211109]
[1757935054560,0.03,237.17,237.16,40.10211109]
[1757935057862,0.03,237.17,237.16,37.53872422]
[1757935058063,0.03,237.17,237.16,40.10211109]
[1757935059368,0.03,237.17,237.12,2.56338687]
[1757935059571,2.56338687,237.14,237.09,0.06]
[1757935059770,0.66,237.13,237.09,0.06]
[1757935060159,6.99796333,237.12,237.09,0.06]
[1757935060364,3.22338687,237.11,237.06,0.06]
[1757935060671,2.56338687,237.09,237.06,0.06]
[1757935061173,0.66,237.08,237.06,0.06]
[1757935061571,4.21816341,237.07,237.06,0.06]
[1757935061950,4.87816341,237.07,237.06,0.06]
[1757935062354,7.44155028,237.07,237.06,0.06]
[1757935063570,0.66,237.07,237.06,0.06]
[1757935063766,7.44155028,237.07,237.06,0.06]
[1757935065863,8.27142046,237.07,237.06,0.06]
[1757935067179,22.69688465,237.07,237.06,0.06]
[1757935067363,42.15898088,237.05,237.04,0.06]
[1757935067682,53.3754635,237.05,237.04,0.06]
[1757935067879,54.0354635,237.05,237.04,0.06]
[1757935068070,13.59559401,237.04,237.02,0.06]
[1757935068270,18.72236775,237.03,237.02,0.06]
[1757935068480,26.38033108,237.03,237.02,0.06]
[1757935068678,13.59559401,237.02,236.99,0.06]
[1757935068875,5.12677374,237.0,236.99,0.06]
[1757935069372,5.80677374,237.0,236.99,0.06]
[1757935069575,0.68,237.0,236.99,0.06]
[1757935069892,2.56338687,237.04,236.99,0.76]
[1757935070063,2.56338687,237.04,236.99,0.06]
[1757935070264,2.56338687,237.03,236.99,0.06]
[1757935070476,2.56338687,237.02,236.99,0.06]
[1757935071282,2.56338687,237.03,236.99,0.76]
[1757935071488,2.56338687,237.04,236.99,4.97953877]
[1757935071665,4.21860937,237.05,237.0,0.7]
[1757935071867,2.56338687,237.04,237.0,0.7]
[1757935072475,2.56338687,237.05,237.01,0.7]
[1757935072780,7.46172931,237.06,237.01,0.7]
[1757935072971,2.56338687,237.06,237.02,0.7]
[1757935073577,3.24338687,237.06,237.0,0.7]
[1757935073877,3.24338687,237.06,237.0,4.91930078]
[1757935074379,2.56338687,237.05,237.0,4.91930078]
[1757935074692,2.56338687,237.05,237.0,0.7]
[1757935074879,0.68,237.04,236.99,0.06]
[1757935075081,0.68,237.04,236.99,0.76]
[1757935075587,2.56338687,237.03,236.99,0.76]
[1757935075774,1.64331115,237.03,236.99,0.76]
[1757935075969,1.64331115,237.03,236.99,0.06]
[1757935076182,2.32331115,237.03,236.99,0.06]
[1757935076487,1.64331115,237.03,236.99,4.97956565]
[1757935077400,1.64331115,237.03,236.99,0.76]
[1757935077693,1.64331115,237.04,236.99,0.76]
[1757935077881,2.32331115,237.04,236.99,4.97954773]
[1757935078068,1.64331115,237.02,236.99,0.06]
[1757935078265,1.64331115,237.04,236.99,4.97958128]
[1757935078485,0.68,237.04,236.99,6.62289243]
[1757935078701,0.68,237.04,236.99,4.97958128]
[1757935078987,0.68,237.04,236.99,0.76]
[1757935079188,1.64331115,237.06,236.99,0.06]
[1757935079394,0.68,237.07,237.0,0.7]
[1757935079587,0.68,237.07,236.99,0.06]
[1757935079893,4.21887524,237.03,236.99,0.06]
[1757935080095,2.32331115,237.02,236.99,0.06]
[1757935080298,1.64331115,237.0,236.99,0.06]
[1757935080674,2.32331115,237.0,236.99,0.06]
[1757935081787,6.54272043,237.0,236.99,0.06]
[1757935085984,6.51272043,237.0,236.99,0.06]
[1757935086302,4.86940928,237.0,236.99,0.06]
[1757935086504,6.51272043,237.0,236.99,0.06]
[1757935087486,139.01272043,237.0,236.99,0.06]
[1757935088322,0.65,237.06,236.99,2.42331115]
[1757935088611,33.26,237.05,237.03,1.64331115]
[1757935088901,33.26,237.05,237.02,1.64331115]
[1757935089081,33.26,237.05,237.02,2.36331115]
[1757935089604,4.24822861,237.07,237.02,2.36331115]
[1757935089803,33.31,237.07,237.03,1.64331115]
[1757935090008,33.31,237.07,237.03,2.36331115]
[1757935090309,0.03,237.07,237.06,1.64331115]
[1757935091211,0.03,237.07,237.02,4.21895673]
[1757935091390,0.03,237.07,237.06,2.36331115]
[1757935092402,0.68,237.07,237.02,27.64331115]
[1757935093012,0.03,237.07,237.03,0.72]
[1757935095796,0.03,237.07,237.03,2.36331115]
[1757935097394,0.03,237.07,237.03,0.72]
[1757935097594,0.03,237.07,237.03,2.36331115]
[1757935097894,1.64331115,237.05,236.99,26.06]
[1757935098096,2.29331115,237.04,236.99,0.06]
[1757935098405,1.64331115,237.0,236.99,0.06]
[1757935099015,1.64331115,237.01,236.99,0.06]
[1757935099298,2.29331115,237.01,236.99,0.06]
[1757935099494,6.51272043,237.0,236.99,0.06]
[1757935100612,4.86940928,237.0,236.99,0.06]
[1757935100800,6.51272043,237.0,236.99,0.06]
[1757935101000,5.86272043,237.0,236.99,0.06]
[1757935101502,2.32331115,237.07,236.99,6.64289847]
[1757935101699,0.68,237.07,237.02,1.64331115]
[1757935101900,0.68,237.07,237.02,2.36331115]
[1757935102214,0.03,237.07,237.04,1.64331115]
[1757935102619,0.03,237.07,237.04,2.36331115]
[1757935103196,0.03,237.07,237.04,0.72]
[1757935103714,0.03,237.07,237.05,0.72]
[1757935103908,0.03,237.07,237.05,2.36331115]
[1757935104307,0.03,237.07,237.05,0.72]
[1757935105521,0.03,237.07,237.06,2.36331115]
[1757935105895,0.03,237.07,237.06,46.31940807]
[1757935106119,0.03,237.12,237.11,0.14216157]
[1757935106420,0.03,237.12,237.11,3.42878387]
[1757935106625,0.03,237.12,237.11,2.50547272]
[1757935107692,0.03,237.12,237.11,4.85011236]
[1757935107895,0.03,237.12,237.11,9.06756417]
[1757935108139,0.03,237.12,237.11,3.98795079]
[1757935111024,0.03,237.12,237.11,9.06756417]
[1757935113726,0.03,237.12,237.11,22.66315818]
[1757935115306,0.03,237.17,237.16,4.13011236]
[1757935115703,0.03,237.17,237.16,4.80011236]
[1757935116219,0.03,237.17,237.16,0.14216157]
[1757935116533,0.71,237.17,237.16,3.98795079]
[1757935116915,0.03,237.17,237.16,3.98795079]
[1757935117817,0.03,237.17,237.16,8.20451344]
[1757935118526,0.03,237.17,237.16,9.01667501]
[1757935121606,0.03,237.17,237.16,41.80667501]
[1757935122228,0.03,237.17,237.16,8.34667501]
[1757935122418,0.03,237.17,237.16,4.13011236]
[1757935122632,0.71,237.17,237.15,3.98795079]
[1757935122834,0.68,237.16,237.13,29.98795079]
[1757935123128,0.68,237.15,237.13,3.98795079]
[1757935123352,0.68,237.14,237.12,37.44795079]
[1757935123520,0.68,237.13,237.12,3.98795079]
[1757935123721,0.68,237.13,237.12,29.98795079]
[1757935124729,0.68,237.15,237.12,29.98795079]
[1757935124924,0.03,237.17,237.13,3.98795079]
[1757935125120,0.68,237.14,237.13,3.98795079]
[1757935125309,4.92649117,237.17,237.13,3.98795079]
[1757935125515,0.68,237.16,237.14,3.98795079]
[1757935126034,0.68,237.15,237.14,3.98795079]
[1757935127319,0.68,237.15,237.13,3.98795079]
[1757935127841,0.68,237.15,237.13,1.64121648]
[1757935130524,0.68,237.15,237.1,12.62938822]
[1757935130525,4.21674215,237.15,237.12,1.64121648]
[1757935130856,0.68,237.14,237.12,1.64121648]
[1757935131445,0.68,237.16,237.13,1.64121648]
[1757935131731,0.68,237.15,237.13,1.64121648]
[1757935132142,0.68,237.14,237.1,50.22696262]
[1757935132321,0.68,237.14,237.13,1.64121648]
[1757935133826,0.71,237.17,237.13,1.64121648]
[1757935134025,0.71,237.17,237.14,1.64121648]
[1757935134655,0.03,237.17,237.16,1.64121648]
[1757935134953,0.03,237.17,237.16,28.47337805]
[1757935135744,0.03,237.17,237.16,33.61172894]
[1757935139754,0.71,237.17,237.16,28.56300472]
[1757935140049,0.03,237.17,237.16,28.56300472]
[1757935140349,0.03,237.17,237.12,4.41933316]
[1757935140350,0.71,237.17,237.12,4.41933316]
[1757935140544,0.68,237.16,237.15,2.56300472]
[1757935140865,0.68,237.16,237.13,59.3]
[1757935140866,0.68,237.16,237.13,2.56300472]
[1757935141048,0.03,237.17,237.15,2.56300472]
[1757935141350,0.03,237.17,237.16,2.56300472]
[1757935141742,0.75,237.17,237.15,2.56300472]
[1757935142047,0.03,237.17,237.16,2.56300472]
[1757935142227,0.03,237.17,237.16,3.25300472]
[1757935142552,0.03,237.17,237.16,3.39516629]
[1757935142738,0.03,237.17,237.16,7.61172894]
[1757935145342,0.03,237.17,237.16,6.92172894]
[1757935145543,0.03,237.17,237.16,40.89172894]
[1757935146932,0.03,237.17,237.16,54.48732295]
[1757935149338,0.1,237.19,237.18,39.73775558]
[1757935149654,0.1,237.19,237.18,72.97775558]
[1757935149952,0.1,237.19,237.18,76.2307603]
[1757935151654,0.1,237.19,237.18,80.4469674]
[1757935153536,0.24727138,237.25,237.24,17.95289636]
[1757935153736,143.13141814,237.39,237.25,0.14216157]
[1757935153737,0.72,237.36,237.25,0.14216157]
[1757935154035,4.31257931,237.39,237.28,42.3007603]
[1757935154261,0.72,237.34,237.28,75.5607603]
[1757935154436,0.72,237.34,237.28,42.9907603]
[1757935154634,0.72,237.34,237.28,76.2507603]
[1757935155153,0.72,237.34,237.28,40.42775558]
[1757935155370,0.72,237.34,237.28,76.2507603]
[1757935155863,0.72,237.34,237.28,80.4651905]
[1757935156357,0.72,237.32,237.28,6.91959649]
[1757935156654,4.21286617,237.37,237.28,40.15959649]
[1757935156655,0.82,237.29,237.28,40.15959649]
[1757935156859,0.1,237.29,237.28,40.01743492]
[1757935157231,0.1,237.29,237.28,40.15959649]
[1757935159957,0.1,237.29,237.28,40.84959649]
[1757935160453,0.1,237.29,237.28,6.91959649]
[1757935160756,0.1,237.29,237.28,40.13959649]
[1757935161565,0.82,237.29,237.28,40.11959649]
[1757935162437,0.1,237.29,237.28,40.11959649]
[1757935166558,0.1,237.29,237.28,4.35659177]
[1757935166760,0.1,237.29,237.27,26.0]
[1757935166761,0.82,237.29,237.27,2.56300472]
[1757935166938,0.82,237.29,237.26,2.56300472]
[1757935166939,0.72,237.28,237.26,2.56300472]
[1757935167145,0.1,237.29,237.27,35.72300472]
[1757935167340,0.1,237.29,237.28,2.56300472]
[1757935168164,0.82,237.29,237.28,2.56300472]
[1757935168351,0.82,237.29,237.28,33.16]
[1757935168554,5.03427523,237.29,237.26,2.56300472]
[1757935168768,5.03427523,237.29,237.25,28.56300472]
[1757935168769,0.72,237.28,237.25,28.56300472]
[1757935168969,0.72,237.27,237.25,33.16]
[1757935169167,0.72,237.26,237.24,2.56300472]
[1757935169477,0.72,237.25,237.24,35.72300472]
[1757935172461,0.72,237.25,237.24,33.16]
[1757935172665,0.72,237.25,237.21,2.56300472]
[1757935172852,0.66,237.24,237.2,2.56300472]
[1757935173051,0.66,237.23,237.2,2.56300472]
[1757935173249,2.56300472,237.26,237.2,2.56300472]
[1757935173250,0.66,237.22,237.2,2.56300472]
[1757935173551,0.66,237.21,237.2,2.56300472]
[1757935173754,4.87577299,237.21,237.17,2.56300472]
[1757935173950,0.66,237.2,237.17,35.72300472]
[1757935174149,0.66,237.2,237.12,0.06]
[1757935174150,0.66,237.19,237.12,0.06]
[1757935174380,3.22300472,237.19,237.13,33.16]
[1757935174664,0.66,237.18,237.14,2.56300472]
[1757935174844,0.66,237.17,237.14,2.56300472]
[1757935175046,0.66,237.16,237.14,2.56300472]
[1757935175247,0.66,237.15,237.14,2.56300472]
[1757935178477,4.87620226,237.19,237.14,2.56300472]
[1757935178774,16.83684372,237.24,237.17,2.56300472]
[1757935178953,0.66,237.23,237.2,2.56300472]
[1757935179156,0.66,237.22,237.2,2.56300472]
[1757935179682,0.66,237.21,237.19,2.56300472]
[1757935180050,0.66,237.2,237.19,2.56300472]
[1757935180367,0.66,237.22,237.19,2.56300472]
[1757935180566,0.66,237.21,237.19,2.56300472]
[1757935181195,0.66,237.21,237.2,2.56300472]
[1757935181680,132.5,237.25,237.2,2.56300472]
[1757935181883,132.5,237.25,237.24,2.56300472]
[1757935182085,133.16,237.25,237.24,2.56300472]
[1757935182385,132.5,237.25,237.24,2.56300472]
[1757935182759,132.5,237.25,237.2,0.66]
[1757935183080,133.16,237.25,237.23,2.56300472]
[1757935183376,132.5,237.25,237.22,4.21541532]
[1757935183557,132.5,237.25,237.24,2.56300472]
[1757935184482,132.5,237.25,237.21,0.14216157]
[1757935184661,132.5,237.25,237.24,2.56300472]
[1757935185373,4.87461051,237.27,237.24,2.56300472]
[1757935185574,0.66,237.26,237.24,2.56300472]
[1757935186281,4.2144302,237.28,237.21,4.21563837]
[1757935186476,0.76,237.29,237.25,2.56300472]
[1757935186784,0.66,237.28,237.24,2.56300472]
[1757935187081,0.66,237.27,237.24,2.56300472]
[1757935187277,0.66,237.26,237.24,2.56300472]
[1757935189181,0.1,237.29,237.25,3.36516629]
[1757935189389,0.1,237.29,237.26,2.56300472]
[1757935189580,0.8,237.29,237.26,2.56300472]
[1757935189771,0.7,237.28,237.24,2.56300472]
[1757935189961,0.7,237.27,237.24,2.56300472]
[1757935191066,0.7,237.26,237.24,2.56300472]
[1757935191263,4.2144302,237.28,237.24,2.56300472]